bitfinex-derivatives/quotes_SOLF0:USTF0_20241203
["timestamp","ask_amount","ask_price","bid_price","bid_amount"]
[1733236894458,34.38172087,219.18,219.0,5.4662]
[1733236895157,34.38172087,219.18,219.06,2.2825]
[1733236895355,34.38172087,219.18,219.0,5.4662]
[1733236895852,2.2817,219.15,219.0,5.4662]
[1733236896453,34.38172087,219.18,219.0,5.4662]
[1733236896651,34.38172087,219.22,219.03,34.38172087]
[1733236896851,36.66262087,219.22,219.16,2.2815]
[1733236897057,37.03352087,219.26,219.09,6.02]
[1733236897259,34.38172087,219.3,219.11,34.38172087]
[1733236897461,34.38172087,219.31,219.11,34.38172087]
[1733236897959,2.2804,219.27,219.2,2.2811]
[1733236898355,2.2806,219.25,219.17,2.2814]
[1733236898560,34.38172087,219.31,219.11,34.38172087]
[1733236899963,36.66172087,219.31,219.24,2.2807]
[1733236900165,2.6709,219.42,219.19,6.02]
[1733236900166,34.38172087,219.35,219.19,6.02]
[1733236900765,34.38172087,219.35,219.25,2.2805]
[1733236901062,2.6709,219.42,219.19,6.02]
[1733236901063,34.38172087,219.39,219.19,40.40172087]
[1733236901972,2.2792,219.38,219.19,40.40172087]
[1733236902265,2.6709,219.42,219.28,34.38172087]
[1733236902472,34.38172087,219.47,219.29,5.94]
[1733236902664,34.38172087,219.47,219.29,11.3399]
[1733236902861,2.2785,219.45,219.35,2.2795]
[1733236903172,34.38172087,219.47,219.3,2.8201]
[1733236903463,34.38172087,219.47,219.38,2.2792]
[1733236903967,2.2785,219.46,219.3,2.8201]
[1733236904163,34.38172087,219.47,219.3,2.8201]
[1733236904667,34.38172087,219.6,219.4,34.38172087]
[1733236904872,34.38172087,219.6,219.41,5.94]
[1733236905066,2.2771,219.59,219.5,2.2779]
[1733236905267,2.8478,219.64,219.44,34.38172087]
[1733236905570,34.38172087,219.63,219.45,2.7795]
[1733236905769,2.277,219.6,219.52,2.2777]
[1733236905974,34.38172087,219.63,219.45,2.7795]
[1733236906366,2.2768,219.62,219.53,2.2776]
[1733236906871,34.38172087,219.63,219.51,2.2778]
[1733236906872,2.277,219.6,219.51,2.2778]
[1733236907267,2.277,219.6,219.45,2.7795]
[1733236907568,4.5466,219.96,219.59,34.38172087]
[1733236907769,4.5466,219.96,219.6,5.94]
[1733236907770,34.38172087,219.82,219.6,5.94]
[1733236907969,2.2753,219.76,219.67,2.2762]
[1733236908169,2.23832556,219.8,219.63,34.38172087]
[1733236908364,34.38172087,219.83,219.63,34.38172087]
[1733236908672,34.38172087,219.83,219.6,8.7195]
[1733236908673,2.2753,219.76,219.6,8.7195]
[1733236908974,34.38172087,219.79,219.6,8.7195]
[1733236909166,2.2756,219.74,219.63,2.2765]
[1733236909471,34.38172087,219.71,219.53,5.94]
[1733236910470,34.38172087,219.59,219.39,40.32172087]
[1733236910668,34.38172087,219.59,219.34,36.61115031]
[1733236910669,34.38172087,219.54,219.37,2.6041]
[1733236910870,5.94,219.66,219.42,34.38172087]
[1733236911170,2.277,219.6,219.42,34.38172087]
[1733236911769,34.38172087,219.6,219.42,34.38172087]
[1733236912573,2.2771,219.59,219.49,2.278]
[1733236912773,34.38172087,219.6,219.49,2.278]
[1733236913070,2.2766,219.64,219.54,2.2776]
[1733236913370,34.38172087,219.64,219.49,5.94]
[1733236914268,34.38172087,219.68,219.49,5.94]
[1733236914469,34.38172087,219.68,219.55,2.2774]
[1733236914675,34.38172087,219.64,219.55,2.2774]
[1733236914877,34.38172087,219.64,219.49,5.94]
[1733236915676,2.277,219.6,219.53,2.2776]
[1733236915873,2.277,219.6,219.39,2.7736]
[1733236915874,34.38172087,219.56,219.39,2.7736]
[1733236916074,8.24627491,219.6,219.37,2.6041]
[1733236916075,34.38172087,219.52,219.37,2.6041]
[1733236916276,2.2783,219.47,219.4,2.279]
[1733236916475,2.8407,219.55,219.37,2.6041]
[1733236917170,34.38172087,219.49,219.37,2.6041]
[1733236917371,34.38172087,219.49,219.32,5.94]
[1733236917571,36.6061661,219.49,219.3,34.38172087]
[1733236917775,36.6061661,219.49,219.26,43.02082087]
[1733236917776,34.38172087,219.45,219.26,43.02082087]
[1733236917975,5.1038,219.55,219.35,34.38172087]
[1733236918177,5.1038,219.55,219.36,5.94]
[1733236918776,2.2779,219.51,219.41,2.2788]
[1733236918975,34.38172087,219.53,219.36,5.94]
[1733236919171,34.38172087,219.62,219.4,34.38172087]
[1733236919476,34.38172087,219.62,219.41,2.6991]
[1733236919677,2.7214,219.66,219.44,34.38172087]
[1733236919980,2.7214,219.66,219.48,34.38172087]
[1733236920277,34.38172087,219.71,219.52,34.38172087]
[1733236920472,34.38172087,219.71,219.42,2.8426]
[1733236920780,34.38172087,219.71,219.5,34.38172087]
[1733236920983,34.38172087,219.71,219.54,34.38172087]
[1733236921182,34.38172087,219.75,219.58,34.38172087]
[1733236921473,34.38172087,219.75,219.55,8.6802]
[1733236921974,2.2762,219.67,219.55,8.6802]
[1733236922182,34.38172087,219.71,219.55,2.7402]
[1733236922681,34.38172087,219.71,219.5,40.32172087]
[1733236922682,34.38172087,219.67,219.5,5.94]
[1733236922978,34.38172087,219.75,219.54,34.38172087]
[1733236923182,34.38172087,219.75,219.58,34.38172087]
[1733236923383,2.7214,219.77,219.59,2.7402]
[1733236923582,2.7214,219.77,219.63,2.2765]
[1733236923782,2.7214,219.77,219.59,2.7402]
[1733236924087,2.2753,219.76,219.62,34.38172087]
[1733236924381,2.268,219.88,219.66,34.38172087]
[1733236924574,4.9017,219.88,219.66,34.38172087]
[1733236924985,4.9017,219.88,219.66,40.32172087]
[1733236925379,2.2749,219.8,219.66,40.32172087]
[1733236925576,4.9017,219.88,219.7,34.38172087]
[1733236925885,5.94,220.06,219.78,34.38172087]
[1733236926178,5.94,220.06,219.82,34.38172087]
[1733236926379,36.68531687,220.0,219.82,34.38172087]
[1733236926583,34.38172087,220.0,219.82,34.38172087]
[1733236926781,2.273,219.99,219.9,2.2738]
[1733236927080,34.38172087,220.04,219.79,2.6048]
[1733236927281,34.38172087,220.04,219.85,34.38172087]
[1733236927488,2.273,219.98,219.88,2.274]
[1733236927882,34.38172087,220.04,219.85,34.38172087]
[1733236928083,34.38172087,220.08,219.85,34.38172087]
[1733236928279,34.38172087,220.08,219.93,2.2734]
[1733236928485,34.38172087,220.0,219.81,34.38172087]
[1733236928681,34.38172087,219.96,219.8,5.4697]
[1733236929181,47.38,220.11,219.8,37.17062087]
[1733236929381,34.38172087,220.12,219.93,34.38172087]
[1733236929587,34.38172087,220.12,219.94,5.94]
[1733236929887,2.2721,220.07,219.94,5.94]
[1733236930188,34.38172087,220.12,219.94,5.94]
[1733236930389,5.94,220.21,219.94,5.94]
[1733236930390,2.2718,220.1,220.0,2.2728]
[1733236930595,34.38172087,220.16,219.97,34.38172087]
[1733236930889,5.94,220.21,219.99,2.2728]
[1733236931086,34.38172087,220.15,219.97,34.38172087]
[1733236931287,5.92,220.41,220.05,34.38172087]
[1733236931584,34.38172087,220.44,220.06,5.92]
[1733236931585,34.38172087,220.28,220.06,5.92]
[1733236931783,34.38172087,220.28,220.09,34.38172087]
[1733236931980,34.38172087,220.24,220.06,5.92]
[1733236932187,2.2711,220.17,220.06,8.1921]
[1733236932386,2.2711,220.17,220.06,5.92]
[1733236932787,34.38172087,220.24,220.06,5.92]
[1733236933091,34.38172087,220.2,220.06,5.92]
[1733236933285,34.38172087,220.2,220.04,2.2723]
[1733236933483,34.38172087,220.2,220.03,5.92]
[1733236933687,34.38172087,220.2,219.95,7.8541]
[1733236933688,34.38172087,220.12,219.95,7.8541]
[1733236933884,34.38172087,220.12,219.95,5.2334]
[1733236934089,34.38172087,220.12,219.95,2.6324]
[1733236934392,34.38172087,220.12,219.92,34.38172087]
[1733236934595,34.38172087,220.08,219.88,34.38172087]
[1733236934789,5.92,220.09,219.88,34.38172087]
[1733236935089,5.92,220.09,219.95,2.2732]
[1733236935289,34.38172087,220.05,219.84,37.24152087]
[1733236935497,34.38172087,220.05,219.89,2.2739]
[1733236935788,34.38172087,220.01,219.84,2.8598]
[1733236935988,2.2729,219.99,219.9,2.2738]
[1733236936289,34.38172087,220.05,219.84,37.24152087]
[1733236936687,34.38172087,220.01,219.84,2.8598]
[1733236936988,34.38172087,219.97,219.84,2.8598]
[1733236937191,34.38172087,220.0,219.84,2.8598]
[1733236937192,5.92,219.99,219.84,2.8598]
[1733236937890,34.38172087,219.9,219.76,2.8122]
[1733236938294,2.2517,219.98,219.76,37.19392087]
[1733236938792,2.2747,219.82,219.69,34.38172087]
[1733236939092,34.38172087,219.91,219.69,34.38172087]
[1733236939493,34.38172087,219.87,219.69,34.38172087]
[1733236939985,13.89,219.99,219.69,34.38172087]
[1733236940188,34.38172087,220.0,219.68,2.6289]
[1733236940189,34.38172087,219.95,219.77,34.38172087]
[1733236940394,2.2739,219.9,219.82,2.2746]
[1733236940594,34.38172087,220.0,219.76,5.92]
[1733236940595,34.38172087,219.92,219.76,5.92]
[1733236940795,34.38172087,219.88,219.68,2.6289]
[1733236941997,34.38172087,219.8,219.68,2.6289]
[1733236942196,2.2753,219.76,219.68,2.6289]
[1733236942593,34.38172087,219.8,219.58,5.92]
[1733236942800,2.2758,219.71,219.62,2.2767]
[1733236942995,34.38172087,219.72,219.57,2.7716]
[1733236943298,34.38172087,219.76,219.57,2.7716]
[1733236943299,34.38172087,219.68,219.57,2.7716]
[1733236943692,34.38172087,219.72,219.57,2.7716]
[1733236943897,2.2764,219.66,219.57,5.0488]
[1733236944093,34.38172087,219.76,219.57,2.7716]
[1733236944293,34.38172087,219.8,219.6,34.38172087]
[1733236944494,34.38172087,219.8,219.61,2.6744]
[1733236944992,34.38172087,219.76,219.61,2.6744]
[1733236945196,34.38172087,219.76,219.57,2.7716]
[1733236945493,2.2762,219.67,219.57,2.7716]
[1733236945697,34.38172087,219.72,219.57,2.7716]
[1733236945894,34.38172087,219.68,219.51,2.64]
[1733236946101,2.2773,219.57,219.49,2.6744]
[1733236946301,34.38172087,219.7,219.49,2.6744]
[1733236946499,2.2765,219.64,219.56,2.2773]
[1733236946796,4.895,219.74,219.52,34.38172087]
[1733236947001,2.2756,219.73,219.64,2.2765]
[1733236947202,2.2634,219.87,219.64,40.30172087]
[1733236947397,2.2634,219.87,219.68,34.38172087]
[1733236947703,37.01332087,219.88,219.68,34.38172087]
[1733236948301,2.2748,219.81,219.68,34.38172087]
[1733236948505,37.01332087,219.88,219.68,34.38172087]
[1733236948798,2.2749,219.8,219.72,2.2757]
[1733236949003,37.01332087,219.88,219.68,34.38172087]
[1733236949201,34.38172087,219.88,219.68,34.38172087]
[1733236949402,34.38172087,219.92,219.72,34.38172087]
[1733236949801,34.38172087,219.92,219.67,34.38172087]
[1733236950110,34.38172087,219.88,219.67,34.38172087]
[1733236950304,34.38172087,219.88,219.71,2.2757]
[1733236950501,34.38172087,219.84,219.68,5.92]
[1733236950696,34.38172087,219.8,219.68,5.92]
[1733236951104,42.6266186,219.89,219.68,5.92]
[1733236951105,34.38172087,219.89,219.68,5.92]
[1733236951399,34.38172087,219.93,219.75,34.38172087]
[1733236951598,2.6408,219.99,219.79,34.38172087]
[1733236951796,34.38172087,219.97,219.8,8.6441]
[1733236952200,34.38172087,219.93,219.8,2.7241]
[1733236953302,34.38172087,219.89,219.67,34.38172087]
[1733236953502,34.38172087,219.89,219.68,11.71532757]
[1733236953806,34.38172087,219.89,219.72,2.2756]
[1733236953999,34.38172087,219.85,219.68,8.6441]
[1733236954699,34.38172087,219.85,219.7,2.2759]
[1733236954900,2.22705534,219.84,219.68,2.7241]
[1733236955208,34.38172087,219.81,219.68,2.7241]
[1733236955409,36.66092833,219.81,219.63,2.2765]
[1733236955599,36.66092833,219.81,219.59,2.8391]
[1733236955600,34.38172087,219.77,219.59,2.8391]
[1733236956106,34.38172087,219.77,219.59,37.22082087]
[1733236956506,34.38172087,219.77,219.63,2.2766]
[1733236956507,2.2759,219.7,219.63,2.2766]
[1733236956702,34.38172087,219.77,219.59,2.8391]
[1733236957307,2.8536,219.84,219.61,34.38172087]
[1733236957308,34.38172087,219.81,219.61,34.38172087]
[1733236957507,5.15580906,219.84,219.72,2.2757]
[1733236957508,2.2751,219.79,219.72,2.2757]
[1733236957709,5.09123323,219.84,219.65,34.38172087]
[1733236957908,5.09123323,219.84,219.59,2.8391]
[1733236957909,34.38172087,219.81,219.61,34.38172087]
[1733236958111,34.38172087,219.77,219.59,2.8391]
[1733236958606,2.2757,219.72,219.59,2.8391]
[1733236958810,34.38172087,219.77,219.59,2.8391]
[1733236959105,2.276,219.69,219.63,2.2766]
[1733236959310,34.38172087,219.77,219.59,2.8391]
[1733236960108,34.38172087,219.73,219.59,2.8391]
[1733236960509,34.38172087,219.73,219.58,2.8612]
[1733236960708,34.38172087,219.73,219.58,5.1383]
[1733236960903,34.38172087,219.73,219.58,2.8612]
[1733236961106,40.28172087,219.77,219.58,2.8612]
[1733236961513,34.38172087,219.77,219.58,2.8612]
[1733236961816,2.2758,219.72,219.64,2.2765]
[1733236962014,34.38172087,219.77,219.64,2.2765]
[1733236962216,34.38172087,219.77,219.58,2.8612]
[1733236962418,34.38172087,219.73,219.58,5.1383]
[1733236962617,36.61012043,219.73,219.58,2.8612]
[1733236962817,34.38172087,219.69,219.45,34.38172087]
[1733236963014,34.38172087,219.65,219.51,2.2778]
[1733236963218,34.38172087,219.6,219.46,2.8276]
[1733236963813,34.38172087,219.56,219.46,2.8276]
[1733236964621,2.2781,219.49,219.46,2.8276]
[1733236965221,34.38172087,219.56,219.46,2.8276]
[1733236965522,34.38172087,219.52,219.29,34.38172087]
[1733236965721,34.38172087,219.52,219.36,8.7618]
[1733236965926,34.38172087,219.52,219.36,2.8618]
[1733236966328,2.2784,219.46,219.36,2.8618]
[1733236966525,34.38172087,219.52,219.36,2.8618]
[1733236967629,36.62393366,219.52,219.36,2.8618]
[1733236967823,2.2788,219.42,219.36,5.1412]
[1733236968026,34.38172087,219.48,219.36,2.8618]
[1733236968425,2.2787,219.43,219.38,2.2792]
[1733236968627,34.38172087,219.48,219.36,2.8618]
[1733236969127,34.38172087,219.44,219.3,2.7242]
[1733236969628,2.28257399,219.43,219.3,2.7242]
[1733236969833,34.38172087,219.44,219.3,2.7242]
[1733236970028,2.2796,219.34,219.28,2.2802]
[1733236970327,34.38172087,219.4,219.21,5.87438188]
[1733236970636,2.28,219.31,219.25,2.2805]
[1733236970832,34.38172087,219.36,219.21,2.7724]
[1733236972030,34.38172087,219.36,219.12,2.8563]
[1733236972227,34.38172087,219.32,219.13,5.5843]
[1733236972833,34.38172087,219.32,219.11,100.46003654]
[1733236972834,34.38172087,219.28,219.11,60.17831567]
[1733236973024,2.281,219.22,219.14,2.2817]
[1733236973227,34.38172087,219.23,219.06,4.23915273]
[1733236973427,34.38172087,219.19,219.02,1.82616172]
[1733236973635,34.38172087,219.19,219.08,2.2823]
[1733236973928,40.28172087,219.23,219.04,34.38172087]
[1733236974134,40.28172087,219.23,219.04,40.28172087]
[1733236974536,40.28172087,219.23,219.04,34.38172087]
[1733236974835,40.28172087,219.23,219.04,40.30172087]
[1733236975131,34.38172087,219.27,219.08,34.38172087]
[1733236975332,34.38172087,219.27,219.09,2.6345]
[1733236975737,34.38172087,219.23,219.09,2.6345]
[1733236976430,2.2815,219.17,219.09,2.6345]
[1733236976632,34.38172087,219.23,219.09,2.6345]
[1733236976828,2.2811,219.21,219.09,2.6345]
[1733236977029,34.38172087,219.32,219.12,34.38172087]
[1733236977238,34.38172087,219.32,219.13,2.8536]
[1733236977428,2.2803,219.28,219.19,2.2811]
[1733236977731,34.38172087,219.23,219.13,2.8536]
[1733236977927,2.2809,219.22,219.15,2.2816]
[1733236978127,34.38172087,219.23,219.13,2.8536]
[1733236978536,40.30172087,219.32,219.13,2.8536]
[1733236979032,2.2808,219.23,219.15,2.2815]
[1733236979225,40.30172087,219.32,219.13,2.8536]
[1733236979226,34.38172087,219.26,219.13,2.8536]
[1733236979834,34.38172087,219.26,219.09,5.92]
[1733236980039,2.2813,219.18,219.11,2.282]
[1733236980241,2.29485478,219.34,219.09,5.92]
[1733236980435,19.41209332,220.94,219.15,34.38172087]
[1733236980436,81.84172087,219.56,219.15,34.38172087]
[1733236980630,81.84172087,219.56,219.32,2.2798]
[1733236980631,34.38172087,219.41,219.32,2.2798]
[1733236980831,34.38172087,219.41,219.19,34.38172087]
[1733236981032,34.38172087,219.41,219.25,5.92]
[1733236981237,34.38172087,219.33,219.17,5.92]
[1733236981536,34.38172087,219.29,219.16,5.6227]
[1733236981733,34.38172087,219.33,219.22,2.2809]
[1733236981928,36.70534295,219.33,219.16,5.6227]
[1733236982134,36.70534295,219.33,219.18,2.2812]
[1733236982329,34.38172087,219.29,219.16,2.8093]
[1733236982529,34.38172087,219.25,219.08,5.83942552]
[1733236982830,2.7373,219.32,219.08,5.83942552]
[1733236982831,34.38172087,219.21,219.11,2.282]
[1733236983035,34.38172087,219.21,219.05,5.92]
[1733236983231,2.2804,219.27,219.16,2.2814]
[1733236983432,2.7373,219.32,219.15,34.38172087]
[1733236983631,54.291,219.6,219.23,34.38172087]
[1733236983828,2.7373,219.44,219.23,34.38172087]
[1733236984034,2.7373,219.44,219.24,11.3553]
[1733236984535,2.2796,219.35,219.28,2.2802]
[1733236984833,2.2796,219.35,219.12,34.38172087]
[1733236984834,34.38172087,219.37,219.17,5.92]
[1733236985229,34.38172087,219.33,219.14,34.38172087]
[1733236985536,34.38172087,219.29,219.13,2.8244]
[1733236985738,34.38172087,219.29,219.1,34.38172087]
[1733236985739,34.38172087,219.25,219.07,5.92]
[1733236986035,34.38172087,219.21,219.0,2.8244]
[1733236986239,34.38172087,219.13,219.01,3.08310961]
[1733236986434,34.38172087,219.13,218.95,7.32468661]
[1733236986739,34.38172087,219.13,218.92,8.7444]
[1733236986935,5.92,219.16,218.97,34.38172087]
[1733236987238,5.92,219.16,219.01,2.283]
[1733236987437,5.92,219.16,218.97,34.38172087]
[1733236987629,34.38172087,219.13,218.93,34.38172087]
[1733236988434,34.38172087,219.17,218.94,5.92]
[1733236988636,2.2819,219.13,218.97,34.38172087]
[1733236988936,34.38172087,219.13,218.92,2.8244]
[1733236989133,2.30393499,219.21,218.92,2.8244]
[1733236989134,34.38172087,219.09,218.92,2.8244]
[1733236989340,34.38172087,219.05,218.87,2.7013]
[1733236989732,2.283,219.02,218.94,2.2838]
[1733236990035,34.38172087,219.09,218.89,34.38172087]
[1733236990240,2.2827,219.05,218.97,2.2835]
[1733236990539,34.38172087,219.09,218.89,34.38172087]
[1733236991536,2.7577,219.12,218.93,34.38172087]
[1733236992536,34.38172087,219.09,218.89,34.38172087]
[1733236992737,34.38172087,219.05,218.87,2.7013]
[1733236993539,34.38172087,219.09,218.89,34.38172087]
[1733236993743,34.38172087,219.09,218.94,2.2838]
[1733236993744,2.2831,219.01,218.94,2.2838]
[1733236994036,2.7577,219.12,218.95,5.9]
[1733236994242,2.7577,219.12,218.97,34.38172087]
[1733236994544,2.7577,219.12,218.98,2.6437]
[1733236994741,34.38172087,219.13,218.98,2.6437]
[1733236995039,2.2719,219.22,219.01,34.38172087]
[1733236995040,2.6401,219.2,219.01,34.38172087]
[1733236995839,2.2815,219.16,219.09,2.2822]
[1733236996339,6.9,219.28,219.07,5.9]
[1733236996340,34.38172087,219.27,219.07,5.9]
[1733236996537,34.38172087,219.31,219.14,34.38172087]
[1733236996738,2.6401,219.33,219.14,34.38172087]
[1733236996943,2.6401,219.33,219.15,2.826]
[1733236997342,2.6401,219.33,219.22,2.2809]
[1733236997540,34.38172087,219.35,219.18,34.38172087]
[1733236997741,34.38172087,219.39,219.23,5.9]
[1733236997942,2.2788,219.43,219.22,34.38172087]
[1733236998148,5.9,219.58,219.26,34.38172087]
[1733236998447,34.38172087,219.49,219.36,2.2794]
[1733236998645,34.38172087,219.52,219.36,2.2794]
[1733236998841,47.48,219.63,219.23,81.86172087]
[1733236998842,376.65479524,220.03,219.45,34.38172087]
[1733236999038,34.38172087,219.8,219.59,34.38172087]
[1733236999341,2.6931,219.86,219.51,34.38172087]
[1733236999342,34.38172087,219.72,219.51,34.38172087]
[1733236999651,34.38172087,219.76,219.46,5.9]
[1733236999652,34.38172087,219.68,219.46,5.9]
[1733236999848,2.6931,219.67,219.46,5.9]
[1733237000642,34.38172087,219.64,219.45,34.38172087]
[1733237000840,34.38172087,219.6,219.41,34.38172087]
[1733237001047,34.38172087,219.56,219.37,34.38172087]
[1733237001242,34.38172087,219.51,219.36,5.9]
[1733237001442,34.38172087,219.55,219.37,3.09242769]
[1733237001643,2.278,219.5,219.39,2.279]
[1733237001945,38.20332087,219.63,219.41,34.38172087]
[1733237002143,2.2768,219.62,219.51,2.2778]
[1733237002343,2.6931,219.67,219.49,34.38172087]
[1733237002639,4.9694,219.67,219.54,2.2775]
[1733237002838,4.9694,219.67,219.53,34.38172087]
[1733237003044,2.6931,219.67,219.57,34.38172087]
[1733237003239,2.8649,219.77,219.58,5.9]
[1733237003438,2.8649,219.77,219.63,2.2766]
[1733237003639,2.8649,219.77,219.61,34.38172087]
[1733237004046,2.8649,219.77,219.64,2.2765]
[1733237004047,2.2753,219.76,219.64,2.2765]
[1733237004349,2.8649,219.77,219.64,2.2765]
[1733237004540,13.66,220.02,219.65,34.38172087]
[1733237004740,34.38172087,220.06,219.85,34.38172087]
[1733237004940,34.38172087,220.1,219.89,34.38172087]
[1733237005145,34.38172087,220.1,219.68,2.8257]
[1733237005344,34.38172087,220.01,219.79,34.38172087]
[1733237005545,34.38172087,219.97,219.75,34.38172087]
[1733237005847,34.38172087,219.93,219.75,34.38172087]
[1733237006041,34.38172087,219.93,219.75,5.9]
[1733237006241,34.38172087,219.89,219.71,34.38172087]
[1733237006446,5.9,219.96,219.63,40.28172087]
[1733237006447,34.38172087,219.85,219.63,40.28172087]
[1733237006642,34.38172087,219.85,219.63,34.38172087]
[1733237006846,2.274,219.89,219.67,36.65782087]
[1733237007152,1.0,219.92,219.67,34.38172087]
[1733237007153,34.38172087,219.9,219.67,34.38172087]
[1733237007345,34.38172087,219.9,219.71,2.2757]
[1733237007346,2.2747,219.82,219.71,2.2757]
[1733237007551,34.38172087,219.86,219.67,34.38172087]
[1733237007947,2.2746,219.83,219.72,2.2756]
[1733237008148,2.2746,219.83,219.67,34.38172087]
[1733237008149,1.0,219.92,219.71,34.38172087]
[1733237008348,37.18752087,219.94,219.75,34.38172087]
[1733237008647,34.38172087,219.98,219.79,34.38172087]
[1733237008847,8.4969,220.0,219.83,34.38172087]
[1733237008848,2.5969,220.0,219.83,34.38172087]
[1733237009048,2.5969,220.0,219.83,40.28172087]
[1733237009257,2.5969,220.0,219.87,34.38172087]
[1733237009753,2.5969,220.0,219.83,40.28172087]
[1733237009944,2.5969,220.0,219.86,2.2742]
[1733237010143,2.5969,220.0,219.83,40.28172087]
[1733237010346,2.5969,220.0,219.83,5.9]
[1733237010745,2.2731,219.97,219.83,5.9]
[1733237010947,2.5969,220.0,219.83,5.9]
[1733237011146,2.5969,220.0,219.86,34.38172087]
[1733237011758,2.8424,220.21,219.95,34.38172087]
[1733237011759,34.38172087,220.15,219.95,34.38172087]
[1733237011956,34.38172087,220.15,219.96,5.88]
[1733237012451,2.272,220.08,219.96,5.88]
[1733237012754,5.3331,220.2,219.96,5.88]
[1733237012755,34.38172087,220.11,219.96,5.88]
[1733237013255,34.38172087,220.15,219.96,5.88]
[1733237013450,526.18491968,221.98,219.96,5.88]
[1733237013660,34.38172087,220.17,219.96,5.88]
[1733237014157,34.38172087,220.13,219.96,5.88]
[1733237014855,2.866,220.31,219.98,34.38172087]
[1733237015052,34.38172087,220.2,219.98,34.38172087]
[1733237015248,34.38172087,220.16,219.98,34.38172087]
[1733237015459,34.38172087,220.16,219.99,5.88]
[1733237016856,34.38172087,220.12,219.91,2.6846]
[1733237017054,34.38172087,220.12,219.92,5.88]
[1733237017358,2.7934,220.11,219.92,5.88]
[1733237017759,2.7934,220.11,219.97,34.38172087]
[1733237017962,2.2719,220.09,219.97,34.38172087]
[1733237018159,2.7934,220.11,219.97,34.38172087]
[1733237018562,2.272,220.08,219.97,36.65482087]
[1733237018761,2.7934,220.11,219.93,40.26172087]
[1733237019258,2.7934,220.11,219.97,2.273]
[1733237019462,2.7934,220.11,219.93,40.26172087]
[1733237019663,2.2721,220.08,219.98,2.2729]
[1733237019966,34.38172087,220.17,219.97,34.38172087]
[1733237020257,34.38172087,220.21,220.01,34.38172087]
[1733237021256,2.2712,220.16,220.05,2.2722]
[1733237021457,34.38172087,220.21,220.05,2.2722]
[1733237021657,2.2718,220.1,220.04,5.86]
[1733237021859,34.38172087,220.22,220.04,5.86]
[1733237022260,2.2714,220.14,220.04,5.86]
[1733237022655,34.38172087,220.22,220.04,5.86]
[1733237022861,2.2715,220.13,220.04,5.86]
[1733237023062,34.38172087,220.22,219.98,34.38172087]
[1733237023261,2.2717,220.11,220.01,2.2726]
[1733237023562,34.38172087,220.18,219.99,5.86]
[1733237023861,2.6168,220.17,220.02,34.38172087]
[1733237025058,2.6168,220.17,219.99,5.86]
[1733237025059,34.38172087,220.27,220.06,34.38172087]
[1733237025563,34.38172087,220.27,220.11,2.2716]
[1733237025957,2.2711,220.17,220.1,2.2717]
[1733237026165,34.38172087,220.27,220.06,34.38172087]
[1733237026762,34.38172087,220.27,220.08,2.272]
[1733237027166,2.2713,220.15,220.08,2.272]
[1733237027363,34.38172087,220.27,220.07,5.86]
[1733237027563,34.38172087,220.27,220.09,2.2718]
[1733237028061,2.2713,220.15,220.08,2.2719]
[1733237028260,2.2713,220.15,220.06,40.24172087]
[1733237028565,34.38172087,220.23,220.06,40.24172087]
[1733237029566,2.2712,220.16,220.1,2.2718]
[1733237029769,34.38172087,220.23,220.06,40.24172087]
[1733237030264,34.38172087,220.23,220.08,2.272]
[1733237030265,2.2713,220.15,220.08,2.272]
[1733237030462,34.38172087,220.27,220.1,34.38172087]
[1733237030861,34.38172087,220.27,220.12,2.2715]
[1733237031064,34.38172087,220.27,220.1,34.38172087]
[1733237031262,34.38172087,220.27,220.06,40.24172087]
[1733237031465,2.2709,220.18,220.11,2.2717]
[1733237031663,2.2709,220.18,220.06,40.24172087]
[1733237031664,34.38172087,220.23,220.06,5.86]
[1733237033064,2.2709,220.18,220.08,2.2719]
[1733237033266,2.28560385,220.21,220.06,5.86]
[1733237033470,34.38172087,220.23,220.06,5.86]
[1733237033668,2.6555,220.31,220.09,34.38172087]
[1733237033872,34.38172087,220.29,220.09,34.38172087]
[1733237034173,2.2704,220.23,220.09,34.38172087]
[1733237034363,2.6555,220.31,220.18,34.38172087]